[Event "*** Titled Tuesday Blitz"]
[Site "Chess.com"]
[Date "2020.05.05"]
[Round "4"]
[White "Klavdia_Nik"]
[Black "tan275"]
[Result "0-1"]
[WhiteElo "1949"]
[BlackElo "2188"]
[TimeControl "180+1"]
[EndTime "10:41:34 PDT"]
[Termination "tan275 won on time"]

1. Nf3 {[%clk 0:03:00.9]} 1... d5 {[%clk 0:02:59]} 2. c4 {[%clk 0:03:00.3]} 2...
e6 {[%clk 0:02:59.1]} 3. b3 {[%clk 0:03:00.2]} 3... Nf6 {[%clk 0:02:53.6]} 4.
Bb2 {[%clk 0:03:00.6]} 4... Be7 {[%clk 0:02:53]} 5. g3 {[%clk 0:03:01.1]} 5...
c5 {[%clk 0:02:50.8]} 6. Bg2 {[%clk 0:03:01.4]} 6... d4 {[%clk 0:02:50.7]} 7. b4
{[%clk 0:03:00.5]} 7... Nc6 {[%clk 0:02:43.7]} 8. bxc5 {[%clk 0:02:58.6]} 8...
Bxc5 {[%clk 0:02:43.4]} 9. O-O {[%clk 0:02:59.2]} 9... O-O {[%clk 0:02:42.9]}
10. d3 {[%clk 0:02:59.7]} 10... e5 {[%clk 0:02:41.7]} 11. Nbd2 {[%clk
0:02:51.3]} 11... Nd7 {[%clk 0:02:26.1]} 12. Qa4 {[%clk 0:02:32.2]} 12... f5
{[%clk 0:02:23.7]} 13. Ba3 {[%clk 0:02:20.6]} 13... Qe7 {[%clk 0:02:19.2]} 14.
Bxc5 {[%clk 0:02:19.3]} 14... Nxc5 {[%clk 0:02:19.1]} 15. Qa3 {[%clk 0:02:13.7]}
15... Bd7 {[%clk 0:02:09.2]} 16. Nb3 {[%clk 0:02:09.1]} 16... b6 {[%clk
0:01:43.9]} 17. Nfd2 {[%clk 0:01:52]} 17... Rae8 {[%clk 0:01:36.7]} 18. Rab1
{[%clk 0:01:46.3]} 18... Nxb3 {[%clk 0:01:20.3]} 19. Qxe7 {[%clk 0:01:44.4]}
19... Nxe7 {[%clk 0:01:18.9]} 20. axb3 {[%clk 0:01:36.2]} 20... Bc6 {[%clk
0:01:18.1]} 21. Nf3 {[%clk 0:01:20.7]} 21... Nc8 {[%clk 0:00:54.1]} 22. b4
{[%clk 0:01:18.3]} 22... e4 {[%clk 0:00:43.5]} 23. Nxd4 {[%clk 0:01:17]} 23...
Bd7 {[%clk 0:00:34.4]} 24. b5 {[%clk 0:01:11.6]} 24... Nd6 {[%clk 0:00:27.8]}
25. Ra1 {[%clk 0:01:06.5]} 25... Nc8 {[%clk 0:00:19.6]} 26. Rfc1 {[%clk
0:00:55.8]} 26... Rd8 {[%clk 0:00:17.9]} 27. Ra3 {[%clk 0:00:43.3]} 27... Rde8
{[%clk 0:00:11.7]} 28. e3 {[%clk 0:00:42.5]} 28... Re5 {[%clk 0:00:10.9]} 29.
Rac3 {[%clk 0:00:24.2]} 29... Rfe8 {[%clk 0:00:10.3]} 30. dxe4 {[%clk
0:00:23.1]} 30... fxe4 {[%clk 0:00:09.7]} 31. c5 {[%clk 0:00:23]} 31... bxc5
{[%clk 0:00:09.1]} 32. Rxc5 {[%clk 0:00:23.3]} 32... Nb6 {[%clk 0:00:08.1]} 33.
Nc6 {[%clk 0:00:19.4]} 33... Rxc5 {[%clk 0:00:06.2]} 34. Rxc5 {[%clk 0:00:18.4]}
34... Kf8 {[%clk 0:00:04.5]} 35. h3 {[%clk 0:00:16.1]} 35... Na4 {[%clk
0:00:03.1]} 36. Rc4 {[%clk 0:00:11.8]} 36... Nb6 {[%clk 0:00:03]} 37. Rxe4
{[%clk 0:00:11.4]} 37... Bxc6 {[%clk 0:00:02.2]} 38. bxc6 {[%clk 0:00:09.8]}
38... Rc8 {[%clk 0:00:02.2]} 39. Re6 {[%clk 0:00:06.9]} 39... Rc7 {[%clk
0:00:03.1]} 40. g4 {[%clk 0:00:05.3]} 40... Kf7 {[%clk 0:00:04]} 41. Rd6 {[%clk
0:00:03.4]} 41... a5 {[%clk 0:00:04.9]} 42. Rd4 {[%clk 0:00:03.1]} 42... a4
{[%clk 0:00:05.1]} 43. Rd3 {[%clk 0:00:02.8]} 43... a3 {[%clk 0:00:05.6]} 0-1

[Event "*** Titled Tuesday Blitz"]
[Site "Chess.com"]
[Date "2020.05.05"]
[Round "4"]
[White "pooh2012"]
[Black "Leo_C"]
[Result "1-0"]
[WhiteElo "2467"]
[BlackElo "2287"]
[TimeControl "180+1"]
[EndTime "10:41:35 PDT"]
[Termination "pooh2012 won by resignation"]

1. e4 {[%clk 0:03:00.9]} 1... c5 {[%clk 0:02:59.2]} 2. Nf3 {[%clk 0:03:00.6]}
2... Nc6 {[%clk 0:02:59.1]} 3. d4 {[%clk 0:02:59.8]} 3... cxd4 {[%clk
0:02:59.5]} 4. Nxd4 {[%clk 0:03:00.7]} 4... Nf6 {[%clk 0:02:59.7]} 5. Nc3 {[%clk
0:03:00.3]} 5... e5 {[%clk 0:03:00.3]} 6. Ndb5 {[%clk 0:02:57.5]} 6... d6 {[%clk
0:03:00.6]} 7. a4 {[%clk 0:02:51.7]} 7... a6 {[%clk 0:03:00]} 8. Na3 {[%clk
0:02:50.9]} 8... Bg4 {[%clk 0:02:59.9]} 9. f3 {[%clk 0:02:50.2]} 9... Be6 {[%clk
0:03:00]} 10. Bc4 {[%clk 0:02:49.4]} 10... Be7 {[%clk 0:02:58.2]} 11. O-O {[%clk
0:02:44.2]} 11... O-O {[%clk 0:02:57]} 12. Be3 {[%clk 0:02:41.1]} 12... Rc8
{[%clk 0:02:56.6]} 13. Bd5 {[%clk 0:02:37.9]} 13... Nb4 {[%clk 0:02:41.8]} 14.
Bxb7 {[%clk 0:02:16.3]} 14... Rb8 {[%clk 0:02:38.5]} 15. Bd5 {[%clk 0:02:15.5]}
15... Nbxd5 {[%clk 0:02:23.8]} 16. exd5 {[%clk 0:02:15.1]} 16... Bf5 {[%clk
0:02:22.1]} 17. b3 {[%clk 0:02:14.8]} 17... Qc7 {[%clk 0:02:17.3]} 18. Nc4
{[%clk 0:02:13.6]} 18... Rfc8 {[%clk 0:02:12.6]} 19. a5 {[%clk 0:02:11.6]} 19...
Nd7 {[%clk 0:02:10.3]} 20. Na4 {[%clk 0:02:08.8]} 20... Nc5 {[%clk 0:02:03.9]}
21. Nab6 {[%clk 0:02:03.5]} 21... Rd8 {[%clk 0:02:00.6]} 22. Qd2 {[%clk
0:01:41.8]} 22... Bg6 {[%clk 0:01:45.4]} 23. Rae1 {[%clk 0:01:32]} 23... f5
{[%clk 0:01:44.8]} 24. f4 {[%clk 0:01:08.2]} 24... Ne4 {[%clk 0:01:42.5]} 25.
Qe2 {[%clk 0:01:02.9]} 25... exf4 {[%clk 0:01:35.7]} 26. Bxf4 {[%clk 0:00:56.4]}
26... Bf7 {[%clk 0:01:29.4]} 27. Qd3 {[%clk 0:00:52]} 27... Bf6 {[%clk
0:01:25.4]} 28. Rxe4 {[%clk 0:00:33.8]} 28... fxe4 {[%clk 0:01:22.6]} 29. Qg3
{[%clk 0:00:34.3]} 29... Bxd5 {[%clk 0:01:02.9]} 30. Nxd5 {[%clk 0:00:31.8]}
30... Qc5+ {[%clk 0:01:03]} 31. Nce3 {[%clk 0:00:23.1]} 31... Bd4 {[%clk
0:01:00.2]} 32. Kh1 {[%clk 0:00:23.1]} 32... Rf8 {[%clk 0:00:56.6]} 33. h4
{[%clk 0:00:07.4]} 33... Rbd8 {[%clk 0:00:49.9]} 34. c4 {[%clk 0:00:06.5]} 34...
Kh8 {[%clk 0:00:48]} 35. b4 {[%clk 0:00:06.4]} 35... Qa7 {[%clk 0:00:45.4]} 36.
Bxd6 {[%clk 0:00:04.7]} 36... Rxf1+ {[%clk 0:00:41.9]} 37. Nxf1 {[%clk
0:00:04.4]} 37... Qf7 {[%clk 0:00:39.5]} 38. Nfe3 {[%clk 0:00:04.4]} 38... Bxe3
{[%clk 0:00:37.2]} 39. Nxe3 {[%clk 0:00:05.3]} 39... Qe6 {[%clk 0:00:32.5]} 40.
c5 {[%clk 0:00:05.4]} 40... Qa2 {[%clk 0:00:31.2]} 41. Kh2 {[%clk 0:00:05.3]}
41... Qb1 {[%clk 0:00:29.5]} 42. Qg5 {[%clk 0:00:05.3]} 42... Rg8 {[%clk
0:00:27.5]} 43. Be5 {[%clk 0:00:04.7]} 43... Qc1 {[%clk 0:00:19.8]} 44. Nf5
{[%clk 0:00:03.3]} 44... Qxg5 {[%clk 0:00:19]} 45. hxg5 {[%clk 0:00:04.2]} 45...
h6 {[%clk 0:00:18.3]} 46. gxh6 {[%clk 0:00:04]} 46... Kh7 {[%clk 0:00:18.1]} 47.
Bxg7 {[%clk 0:00:04.3]} 47... Rb8 {[%clk 0:00:17.1]} 48. c6 {[%clk 0:00:04.4]}
48... Rxb4 {[%clk 0:00:17.1]} 49. c7 {[%clk 0:00:04.8]} 49... Rc4 {[%clk
0:00:17.2]} 50. Be5 {[%clk 0:00:05.1]} 50... e3 {[%clk 0:00:17.2]} 51. Nxe3
{[%clk 0:00:05]} 51... Rc5 {[%clk 0:00:17.6]} 52. Bf4 {[%clk 0:00:04.7]} 52...
Rc6 {[%clk 0:00:16.2]} 53. g3 {[%clk 0:00:05]} 53... Rc3 {[%clk 0:00:16]} 54.
Kg2 {[%clk 0:00:05.4]} 54... Kg6 {[%clk 0:00:16.2]} 55. Kf3 {[%clk 0:00:05.7]}
55... Rc6 {[%clk 0:00:16.3]} 56. Ke4 {[%clk 0:00:06]} 56... Rc1 {[%clk
0:00:15.2]} 57. Kd5 {[%clk 0:00:06.3]} 57... Rd1+ {[%clk 0:00:15.1]} 58. Kc5
{[%clk 0:00:06.3]} 58... Rc1+ {[%clk 0:00:14.9]} 59. Nc4 {[%clk 0:00:06.9]}
59... Kh5 {[%clk 0:00:13.8]} 60. c8=Q {[%clk 0:00:06.2]} 60... Rxc4+ {[%clk
0:00:10.4]} 61. Kxc4 {[%clk 0:00:07.1]} 1-0

[Event "*** Titled Tuesday Blitz"]
[Site "Chess.com"]
[Date "2020.05.05"]
[Round "4"]
[White "stanyga"]
[Black "kakakz"]
[Result "1-0"]
[WhiteElo "2690"]
[BlackElo "2432"]
[TimeControl "180+1"]
[EndTime "10:41:36 PDT"]
[Termination "stanyga won on time"]

1. e4 {[%clk 0:03:00.9]} 1... c5 {[%clk 0:02:59.6]} 2. Nf3 {[%clk 0:03:00.2]}
2... d6 {[%clk 0:02:59.8]} 3. Bb5+ {[%clk 0:03:00.6]} 3... Bd7 {[%clk
0:02:59.9]} 4. Bxd7+ {[%clk 0:03:00]} 4... Nxd7 {[%clk 0:03:00.8]} 5. O-O {[%clk
0:02:59.6]} 5... Ngf6 {[%clk 0:03:00.8]} 6. Re1 {[%clk 0:02:59.7]} 6... e6
{[%clk 0:02:59.2]} 7. d4 {[%clk 0:02:59.5]} 7... cxd4 {[%clk 0:02:56.4]} 8. Nxd4
{[%clk 0:03:00.4]} 8... a6 {[%clk 0:02:52.5]} 9. c4 {[%clk 0:02:59.8]} 9... Rc8
{[%clk 0:02:52]} 10. b3 {[%clk 0:02:59.8]} 10... Be7 {[%clk 0:02:50.7]} 11. Bb2
{[%clk 0:02:58.4]} 11... O-O {[%clk 0:02:50.3]} 12. Nc3 {[%clk 0:02:58.1]} 12...
Qa5 {[%clk 0:02:50.7]} 13. Rc1 {[%clk 0:02:56]} 13... Rc7 {[%clk 0:02:39.2]} 14.
Qd2 {[%clk 0:02:40.6]} 14... Qh5 {[%clk 0:02:34.8]} 15. h3 {[%clk 0:02:38.4]}
15... Rfc8 {[%clk 0:02:32.6]} 16. Rcd1 {[%clk 0:02:35.2]} 16... Bf8 {[%clk
0:02:13.4]} 17. Qe3 {[%clk 0:02:26.9]} 17... Qa5 {[%clk 0:02:09.8]} 18. a3
{[%clk 0:02:09.5]} 18... Qb6 {[%clk 0:01:19.9]} 19. Na4 {[%clk 0:02:01.2]} 19...
Qa7 {[%clk 0:01:09.6]} 20. Qg3 {[%clk 0:01:58.5]} 20... Qb8 {[%clk 0:00:52.9]}
21. Nc3 {[%clk 0:01:51.9]} 21... Nh5 {[%clk 0:00:49]} 22. Qf3 {[%clk 0:01:48.9]}
22... Nhf6 {[%clk 0:00:48.2]} 23. Qg3 {[%clk 0:01:46.3]} 23... Nh5 {[%clk
0:00:47.4]} 24. Qf3 {[%clk 0:01:46.3]} 24... Nhf6 {[%clk 0:00:47]} 25. a4 {[%clk
0:01:37.9]} 25... Ne5 {[%clk 0:00:32.8]} 26. Qe2 {[%clk 0:01:35.9]} 26... Ned7
{[%clk 0:00:26.6]} 27. Qf3 {[%clk 0:01:31.4]} 27... Qa7 {[%clk 0:00:26.4]} 28.
Ba3 {[%clk 0:01:23.7]} 28... Qb6 {[%clk 0:00:25]} 29. Nce2 {[%clk 0:01:00.5]}
29... Nc5 {[%clk 0:00:23]} 30. a5 {[%clk 0:00:57.8]} 30... Qa7 {[%clk
0:00:21.6]} 31. Nc3 {[%clk 0:00:57.1]} 31... e5 {[%clk 0:00:16.1]} 32. Nf5
{[%clk 0:00:38.6]} 32... Nxb3 {[%clk 0:00:16.3]} 33. Bxd6 {[%clk 0:00:34.9]}
33... Bxd6 {[%clk 0:00:15.6]} 34. Rxd6 {[%clk 0:00:35.2]} 34... Nd4 {[%clk
0:00:14.8]} 35. Nxd4 {[%clk 0:00:31.6]} 35... exd4 {[%clk 0:00:14.6]} 36. Nd5
{[%clk 0:00:32.5]} 36... Nxd5 {[%clk 0:00:13.8]} 37. cxd5 {[%clk 0:00:28]} 37...
Qc5 {[%clk 0:00:12.2]} 38. e5 {[%clk 0:00:27.4]} 38... Qxa5 {[%clk 0:00:12.5]}
39. Re4 {[%clk 0:00:26]} 39... Rc3 {[%clk 0:00:07.4]} 40. Qg4 {[%clk 0:00:24.8]}
40... d3 {[%clk 0:00:06.6]} 41. e6 {[%clk 0:00:24.2]} 41... Qc7 {[%clk
0:00:03.2]} 42. exf7+ {[%clk 0:00:22.5]} 42... Qxf7 {[%clk 0:00:03.4]} 43. Rd7
{[%clk 0:00:16]} 43... Qf8 {[%clk 0:00:01.2]} 44. Rf4 {[%clk 0:00:14.6]} 1-0

[Event "*** Titled Tuesday Blitz"]
[Site "Chess.com"]
[Date "2020.05.05"]
[Round "4"]
[White "semchik73"]
[Black "Majesth"]
[Result "1/2-1/2"]
[WhiteElo "2207"]
[BlackElo "2431"]
[TimeControl "180+1"]
[EndTime "10:41:36 PDT"]
[Termination "Game drawn - insufficient material"]

1. Nf3 {[%clk 0:03:00.7]} 1... g6 {[%clk 0:02:59.9]} 2. c4 {[%clk 0:03:01.1]}
2... Bg7 {[%clk 0:03:00.4]} 3. d4 {[%clk 0:03:01.6]} 3... d6 {[%clk 0:03:00.2]}
4. Nc3 {[%clk 0:03:02]} 4... Bg4 {[%clk 0:02:59.6]} 5. e3 {[%clk 0:02:56.3]}
5... Nc6 {[%clk 0:02:58.9]} 6. Be2 {[%clk 0:02:56.5]} 6... e5 {[%clk 0:02:58.6]}
7. dxe5 {[%clk 0:02:55.1]} 7... dxe5 {[%clk 0:02:58.1]} 8. Qb3 {[%clk
0:02:53.6]} 8... Rb8 {[%clk 0:02:49.2]} 9. h3 {[%clk 0:02:53]} 9... Be6 {[%clk
0:02:44.3]} 10. Nd5 {[%clk 0:02:50.9]} 10... Nge7 {[%clk 0:02:35.7]} 11. e4
{[%clk 0:02:50.4]} 11... h6 {[%clk 0:02:29]} 12. O-O {[%clk 0:02:46.7]} 12...
O-O {[%clk 0:02:25.5]} 13. Rd1 {[%clk 0:02:46.5]} 13... Nd4 {[%clk 0:02:02.3]}
14. Nxd4 {[%clk 0:02:39.4]} 14... exd4 {[%clk 0:02:03.2]} 15. Bf4 {[%clk
0:02:22.4]} 15... Bxd5 {[%clk 0:01:58.4]} 16. cxd5 {[%clk 0:02:21.9]} 16... g5
{[%clk 0:01:49]} 17. Bg3 {[%clk 0:02:21.3]} 17... Ng6 {[%clk 0:01:48.9]} 18.
Rac1 {[%clk 0:02:16.5]} 18... Nf4 {[%clk 0:01:33.5]} 19. Bxf4 {[%clk 0:02:11.3]}
19... gxf4 {[%clk 0:01:34.4]} 20. Qf3 {[%clk 0:02:02.4]} 20... Be5 {[%clk
0:01:28.6]} 21. g3 {[%clk 0:01:42.6]} 21... fxg3 {[%clk 0:01:20]} 22. fxg3
{[%clk 0:01:42]} 22... Qg5 {[%clk 0:01:18.9]} 23. Kg2 {[%clk 0:01:31.9]} 23...
f5 {[%clk 0:01:09.4]} 24. h4 {[%clk 0:01:27.9]} 24... Qg6 {[%clk 0:01:03.5]} 25.
exf5 {[%clk 0:00:58.2]} 25... Rxf5 {[%clk 0:01:04.4]} 26. Qb3 {[%clk 0:00:58.2]}
26... Rbf8 {[%clk 0:00:42.6]} 27. Rf1 {[%clk 0:00:53.4]} 27... Rxf1 {[%clk
0:00:29.2]} 28. Rxf1 {[%clk 0:00:51.8]} 28... Qe4+ {[%clk 0:00:29.6]} 29. Bf3
{[%clk 0:00:50.5]} 29... Qg6 {[%clk 0:00:26.6]} 30. Be2 {[%clk 0:00:41.3]} 30...
Rxf1 {[%clk 0:00:20.6]} 31. Bxf1 {[%clk 0:00:41.2]} 31... Bd6 {[%clk 0:00:14.5]}
32. Qd3 {[%clk 0:00:38.2]} 32... Qg7 {[%clk 0:00:08.6]} 33. Be2 {[%clk
0:00:37.4]} 33... Kf7 {[%clk 0:00:07.8]} 34. Bh5+ {[%clk 0:00:37]} 34... Ke7
{[%clk 0:00:07.7]} 35. Qe4+ {[%clk 0:00:36.8]} 35... Be5 {[%clk 0:00:05.5]} 36.
g4 {[%clk 0:00:35.5]} 36... Kd6 {[%clk 0:00:05.5]} 37. Bg6 {[%clk 0:00:34.6]}
37... Qf6 {[%clk 0:00:05.4]} 38. Qf5 {[%clk 0:00:29.6]} 38... Qxf5 {[%clk
0:00:05.6]} 39. Bxf5 {[%clk 0:00:26.9]} 39... Kxd5 {[%clk 0:00:06.5]} 40. Kf3
{[%clk 0:00:27]} 40... d3 {[%clk 0:00:05.2]} 41. Bxd3 {[%clk 0:00:26.8]} 41...
Kd4 {[%clk 0:00:04.3]} 42. Be4 {[%clk 0:00:23.5]} 42... b6 {[%clk 0:00:05.2]}
43. g5 {[%clk 0:00:22.2]} 43... hxg5 {[%clk 0:00:06.1]} 44. hxg5 {[%clk
0:00:22.4]} 44... Kc4 {[%clk 0:00:06.4]} 45. b3+ {[%clk 0:00:22.1]} 45... Kc3
{[%clk 0:00:06.3]} 46. Kg4 {[%clk 0:00:21.8]} 46... Kb2 {[%clk 0:00:05.5]} 47.
a4 {[%clk 0:00:19.8]} 47... Kxb3 {[%clk 0:00:05.2]} 48. Bc6 {[%clk 0:00:20.3]}
48... Kb4 {[%clk 0:00:05.2]} 49. Kf5 {[%clk 0:00:20.8]} 49... Bc3 {[%clk
0:00:04.4]} 50. g6 {[%clk 0:00:21]} 50... a6 {[%clk 0:00:04.9]} 51. Ke6 {[%clk
0:00:20.3]} 51... Kc5 {[%clk 0:00:04]} 52. Be8 {[%clk 0:00:19.4]} 52... b5
{[%clk 0:00:03.5]} 53. axb5 {[%clk 0:00:17.6]} 53... axb5 {[%clk 0:00:04.4]} 54.
Kd7 {[%clk 0:00:17.5]} 54... Be5 {[%clk 0:00:04.4]} 55. g7 {[%clk 0:00:16.2]}
55... Bxg7 {[%clk 0:00:04.4]} 56. Kxc7 {[%clk 0:00:16.5]} 56... b4 {[%clk
0:00:05.3]} 57. Bf7 {[%clk 0:00:16.5]} 57... Kd4 {[%clk 0:00:06.2]} 58. Kc6
{[%clk 0:00:16.6]} 58... Kc3 {[%clk 0:00:07.1]} 59. Kb5 {[%clk 0:00:16.8]} 59...
b3 {[%clk 0:00:08]} 60. Bxb3 {[%clk 0:00:16.6]} 1/2-1/2

[Event "*** Titled Tuesday Blitz"]
[Site "Chess.com"]
[Date "2020.05.05"]
[Round "4"]
[White "Vaathi_Coming"]
[Black "evgenyermolaev"]
[Result "1-0"]
[WhiteElo "2847"]
[BlackElo "2594"]
[TimeControl "180+1"]
[EndTime "10:41:37 PDT"]
[Termination "Vaathi_Coming won on time"]

1. e4 {[%clk 0:03:00.9]} 1... c5 {[%clk 0:02:59.7]} 2. Nf3 {[%clk 0:03:01]} 2...
d6 {[%clk 0:02:59.7]} 3. c3 {[%clk 0:03:01.2]} 3... Nf6 {[%clk 0:02:59.4]} 4.
Be2 {[%clk 0:03:01.2]} 4... g6 {[%clk 0:02:59.2]} 5. O-O {[%clk 0:03:00.9]} 5...
Bg7 {[%clk 0:02:58.9]} 6. Bb5+ {[%clk 0:03:01.4]} 6... Nbd7 {[%clk 0:02:54.5]}
7. Re1 {[%clk 0:03:00.8]} 7... O-O {[%clk 0:02:53.3]} 8. d4 {[%clk 0:03:00.9]}
8... a6 {[%clk 0:02:49.6]} 9. Bf1 {[%clk 0:03:00.7]} 9... b5 {[%clk 0:02:33.8]}
10. e5 {[%clk 0:02:57.6]} 10... Ne8 {[%clk 0:02:30.2]} 11. a4 {[%clk 0:02:52.4]}
11... Rb8 {[%clk 0:02:11.7]} 12. axb5 {[%clk 0:02:50.8]} 12... axb5 {[%clk
0:02:12.6]} 13. Bg5 {[%clk 0:02:47.2]} 13... dxe5 {[%clk 0:01:46.2]} 14. dxc5
{[%clk 0:02:22.2]} 14... f6 {[%clk 0:01:43.3]} 15. c6 {[%clk 0:02:22.1]} 15...
fxg5 {[%clk 0:01:37.8]} 16. cxd7 {[%clk 0:01:56.8]} 16... Bxd7 {[%clk
0:01:31.7]} 17. Nxe5 {[%clk 0:01:52.5]} 17... Nd6 {[%clk 0:00:57.3]} 18. Qd5+
{[%clk 0:01:20.9]} 18... Kh8 {[%clk 0:00:54.5]} 19. Nxd7 {[%clk 0:01:07.7]}
19... Qxd7 {[%clk 0:00:54.1]} 20. Nd2 {[%clk 0:01:05.4]} 20... b4 {[%clk
0:00:50.6]} 21. Ne4 {[%clk 0:01:03.3]} 21... bxc3 {[%clk 0:00:43.7]} 22. bxc3
{[%clk 0:01:04.2]} 22... Qf5 {[%clk 0:00:36.5]} 23. Qxf5 {[%clk 0:01:02.5]}
23... gxf5 {[%clk 0:00:36.9]} 24. Nxd6 {[%clk 0:00:56.2]} 24... exd6 {[%clk
0:00:36.8]} 25. Rac1 {[%clk 0:00:52.2]} 25... Rfe8 {[%clk 0:00:27.3]} 26. Red1
{[%clk 0:00:51.2]} 26... Be5 {[%clk 0:00:27.4]} 27. Rc2 {[%clk 0:00:48.1]} 27...
Rbc8 {[%clk 0:00:26.8]} 28. c4 {[%clk 0:00:47.9]} 28... Kg7 {[%clk 0:00:26.2]}
29. g3 {[%clk 0:00:47.6]} 29... Kf6 {[%clk 0:00:25.4]} 30. Rb1 {[%clk
0:00:42.3]} 30... Bd4 {[%clk 0:00:21]} 31. Kg2 {[%clk 0:00:36.7]} 31... Bc5
{[%clk 0:00:20.7]} 32. Bd3 {[%clk 0:00:30.5]} 32... Re7 {[%clk 0:00:19.8]} 33.
Rcb2 {[%clk 0:00:26.1]} 33... Rce8 {[%clk 0:00:18.3]} 34. Rb8 {[%clk 0:00:25.7]}
34... Rxb8 {[%clk 0:00:16.1]} 35. Rxb8 {[%clk 0:00:26.6]} 35... Re5 {[%clk
0:00:13.8]} 36. Rf8+ {[%clk 0:00:25.7]} 36... Ke6 {[%clk 0:00:12.1]} 37. f4
{[%clk 0:00:19.4]} 37... gxf4 {[%clk 0:00:12.1]} 38. gxf4 {[%clk 0:00:20.3]}
38... Re3 {[%clk 0:00:12.4]} 39. Bxf5+ {[%clk 0:00:20.6]} 39... Ke7 {[%clk
0:00:12.8]} 40. Rh8 {[%clk 0:00:20.9]} 40... Rc3 {[%clk 0:00:09.4]} 41. Rxh7+
{[%clk 0:00:20.1]} 41... Kf6 {[%clk 0:00:09.7]} 42. Be4 {[%clk 0:00:18.5]} 42...
Rxc4 {[%clk 0:00:09.9]} 43. Kf3 {[%clk 0:00:19]} 43... Rc3+ {[%clk 0:00:09.3]}
44. Kg4 {[%clk 0:00:19.4]} 44... Rc4 {[%clk 0:00:08.2]} 45. Bd5 {[%clk
0:00:15.6]} 45... Rd4 {[%clk 0:00:07.2]} 46. Rf7+ {[%clk 0:00:15.3]} 46... Kg6
{[%clk 0:00:07.3]} 47. Be6 {[%clk 0:00:15.5]} 47... Re4 {[%clk 0:00:05.6]} 48.
Rb7 {[%clk 0:00:14.7]} 48... Kf6 {[%clk 0:00:04.2]} 49. Bd5 {[%clk 0:00:12.1]}
49... Rd4 {[%clk 0:00:04]} 50. Ba2 {[%clk 0:00:12.4]} 50... Rb4 {[%clk
0:00:04.1]} 51. Rf7+ {[%clk 0:00:11.8]} 51... Kg6 {[%clk 0:00:04.2]} 52. h4
{[%clk 0:00:12]} 52... Rb2 {[%clk 0:00:03.8]} 53. h5+ {[%clk 0:00:11.3]} 53...
Kh6 {[%clk 0:00:04.2]} 54. Bd5 {[%clk 0:00:10.7]} 54... Be3 {[%clk 0:00:03.4]}
55. Be4 {[%clk 0:00:10.5]} 1-0

[Event "*** Titled Tuesday Blitz"]
[Site "Chess.com"]
[Date "2020.05.05"]
[Round "4"]
[White "theblitzchamp"]
[Black "atalz0"]
[Result "1-0"]
[WhiteElo "2679"]
[BlackElo "2476"]
[TimeControl "180+1"]
[EndTime "10:41:37 PDT"]
[Termination "theblitzchamp won on time"]

1. d4 {[%clk 0:03:00.9]} 1... d5 {[%clk 0:02:59.8]} 2. Bf4 {[%clk 0:03:00.9]}
2... Bf5 {[%clk 0:02:59.2]} 3. Nf3 {[%clk 0:02:59.6]} 3... e6 {[%clk 0:02:59.4]}
4. e3 {[%clk 0:02:56.9]} 4... Bd6 {[%clk 0:02:59.5]} 5. Bg5 {[%clk 0:02:53.6]}
5... f6 {[%clk 0:02:56.7]} 6. Bh4 {[%clk 0:02:53.3]} 6... Ne7 {[%clk 0:02:53.2]}
7. Nbd2 {[%clk 0:02:52.3]} 7... c5 {[%clk 0:02:47.3]} 8. c3 {[%clk 0:02:51.9]}
8... Nbc6 {[%clk 0:02:46.9]} 9. Be2 {[%clk 0:02:50.3]} 9... g5 {[%clk
0:02:38.2]} 10. Bg3 {[%clk 0:02:49.9]} 10... h5 {[%clk 0:02:38.8]} 11. Qb3
{[%clk 0:02:40.8]} 11... c4 {[%clk 0:02:25]} 12. Qxb7 {[%clk 0:02:08.1]} 12...
Rb8 {[%clk 0:02:23.8]} 13. Qa6 {[%clk 0:02:07.4]} 13... Rxb2 {[%clk 0:02:05]}
14. Qa4 {[%clk 0:02:05.7]} 14... Bc2 {[%clk 0:02:00.2]} 15. Qa6 {[%clk
0:02:02.2]} 15... Rb6 {[%clk 0:01:57.9]} 16. Nxc4 {[%clk 0:01:51.4]} 16... Rxa6
{[%clk 0:01:21.8]} 17. Nxd6+ {[%clk 0:01:50.7]} 17... Kf8 {[%clk 0:01:21.9]} 18.
Bxa6 {[%clk 0:01:51.1]} 18... h4 {[%clk 0:01:14.1]} 19. Nb7 {[%clk 0:01:48.3]}
19... Qb6 {[%clk 0:01:11]} 20. Nc5 {[%clk 0:01:48]} 20... Kf7 {[%clk 0:01:04.1]}
21. Bd6 {[%clk 0:01:39.8]} 21... Qb2 {[%clk 0:00:48.3]} 22. O-O {[%clk
0:01:38.8]} 22... Nf5 {[%clk 0:00:40.3]} 23. Bc7 {[%clk 0:01:32.7]} 23... g4
{[%clk 0:00:22.4]} 24. Ne1 {[%clk 0:01:32]} 24... Qxa1 {[%clk 0:00:17.4]} 25.
Nxc2 {[%clk 0:01:30.2]} 25... Qxc3 {[%clk 0:00:17]} 26. Bd3 {[%clk 0:01:26.3]}
26... g3 {[%clk 0:00:14.5]} 27. hxg3 {[%clk 0:01:19.4]} 27... hxg3 {[%clk
0:00:12.4]} 28. fxg3 {[%clk 0:01:19.6]} 28... Nxe3 {[%clk 0:00:10.1]} 29. Nxe3
{[%clk 0:01:08.2]} 29... Qxd4 {[%clk 0:00:09.2]} 30. Rf3 {[%clk 0:01:02.1]}
30... Qxc5 {[%clk 0:00:09]} 31. Bf4 {[%clk 0:01:02.6]} 31... Nd4 {[%clk
0:00:08.5]} 32. Rf1 {[%clk 0:01:00.2]} 32... Nf5 {[%clk 0:00:06.7]} 33. Bxf5
{[%clk 0:00:58.8]} 33... exf5 {[%clk 0:00:07.6]} 34. Rd1 {[%clk 0:00:57.6]}
34... d4 {[%clk 0:00:07.8]} 35. Nf1 {[%clk 0:00:57.8]} 35... d3+ {[%clk
0:00:07.8]} 36. Be3 {[%clk 0:00:58.1]} 36... Qc2 {[%clk 0:00:07.8]} 37. Rc1
{[%clk 0:00:57.3]} 37... Qxa2 {[%clk 0:00:06.4]} 38. Rc7+ {[%clk 0:00:57]} 38...
Kg6 {[%clk 0:00:06.6]} 39. Rd7 {[%clk 0:00:56.1]} 39... Qc2 {[%clk 0:00:05.2]}
40. Nd2 {[%clk 0:00:54.3]} 40... Re8 {[%clk 0:00:05.3]} 41. Kf2 {[%clk
0:00:51.8]} 41... Rxe3 {[%clk 0:00:04.4]} 42. Kxe3 {[%clk 0:00:51.4]} 42... a5
{[%clk 0:00:04.5]} 43. Rxd3 {[%clk 0:00:51.2]} 43... Qc5+ {[%clk 0:00:04.7]} 44.
Ke2 {[%clk 0:00:50.8]} 44... a4 {[%clk 0:00:04.5]} 45. Kd1 {[%clk 0:00:45.4]}
45... a3 {[%clk 0:00:04.7]} 46. Nb3 {[%clk 0:00:42.3]} 46... Qb4 {[%clk
0:00:04.1]} 47. Kc2 {[%clk 0:00:42.1]} 47... a2 {[%clk 0:00:04.4]} 48. Rd1
{[%clk 0:00:42.1]} 48... Qc4+ {[%clk 0:00:04.4]} 49. Kb2 {[%clk 0:00:42.2]}
49... Qe2+ {[%clk 0:00:04.6]} 50. Rd2 {[%clk 0:00:41.3]} 50... Qa6 {[%clk
0:00:04]} 51. Rd1 {[%clk 0:00:37.5]} 51... Qa4 {[%clk 0:00:04.1]} 52. Ra1 {[%clk
0:00:35.9]} 52... Qe4 {[%clk 0:00:03.8]} 53. Rxa2 {[%clk 0:00:29.3]} 53... Qxg2+
{[%clk 0:00:03.9]} 54. Kb1 {[%clk 0:00:28.8]} 54... Qxg3 {[%clk 0:00:04.8]} 55.
Nc1 {[%clk 0:00:28.9]} 55... Qe1 {[%clk 0:00:04.8]} 56. Re2 {[%clk 0:00:28.4]}
56... Qf1 {[%clk 0:00:04.2]} 57. Kc2 {[%clk 0:00:28.5]} 57... f4 {[%clk
0:00:04.4]} 58. Kd2 {[%clk 0:00:27.3]} 58... f3 {[%clk 0:00:04.6]} 59. Re8
{[%clk 0:00:26.3]} 59... f2 {[%clk 0:00:04.4]} 60. Nd3 {[%clk 0:00:26.6]} 60...
Qg2 {[%clk 0:00:02.9]} 61. Nf4+ {[%clk 0:00:26.6]} 1-0